bitfinex-derivatives/quotes_BTCF0:USTF0_20240824
["timestamp","ask_amount","ask_price","bid_price","bid_amount"]
[1724521206528,0.446624,64218.0,64217.0,0.00223356]
[1724521207322,0.727524,64218.0,64217.0,0.00223356]
[1724521208414,1.194684,64218.0,64217.0,0.00223356]
[1724521209624,0.727524,64218.0,64217.0,0.00223356]
[1724521209924,1.594684,64218.0,64217.0,0.00223356]
[1724521210120,1.955484,64218.0,64217.0,0.00223356]
[1724521210827,1.555484,64218.0,64217.0,0.00223356]
[1724521211621,1.088324,64218.0,64217.0,0.00223356]
[1724521211821,1.955484,64218.0,64217.0,0.00223356]
[1724521212715,1.633308,64218.0,64217.0,0.00223356]
[1724521216525,0.911708,64218.0,64217.0,0.00223356]
[1724521216720,1.633308,64218.0,64217.0,0.00223356]
[1724521218128,1.633308,64218.0,64217.0,0.04878673]
[1724521218326,1.633308,64218.0,64217.0,0.00223356]
[1724521218530,1.166148,64218.0,64217.0,0.00223356]
[1724521218725,1.633308,64218.0,64217.0,0.00223356]
[1724521219423,1.633308,64218.0,64217.0,0.12082178]
[1724521219626,1.166148,64218.0,64217.0,0.12082178]
[1724521220428,2.033308,64218.0,64217.0,0.12082178]
[1724521220632,1.633308,64218.0,64217.0,0.12082178]
[1724521220830,2.033308,64218.0,64217.0,0.12082178]
[1724521221032,2.033308,64218.0,64217.0,0.00223356]
[1724521223920,2.033308,64218.0,64217.0,0.06447548]
[1724521225033,2.033308,64218.0,64217.0,0.00223356]
[1724521226333,2.033308,64218.0,64217.0,0.04890046]
[1724521226626,2.033308,64218.0,64217.0,0.00223356]
[1724521226627,1.633308,64218.0,64217.0,0.00223356]
[1724521226826,1.633308,64218.0,64217.0,0.06445151]
[1724521227034,1.166148,64218.0,64217.0,0.00223356]
[1724521227223,1.633308,64218.0,64217.0,0.00223356]
[1724521227434,1.166148,64218.0,64217.0,0.0644538]
[1724521227633,1.633308,64218.0,64217.0,0.0644538]
[1724521228037,1.555484,64218.0,64217.0,0.0644538]
[1724521228229,1.555484,64218.0,64217.0,0.00223356]
[1724521229039,1.088324,64218.0,64217.0,0.00223356]
[1724521233835,1.633308,64218.0,64217.0,0.06445518]
[1724521234136,1.633308,64218.0,64217.0,0.00223356]
[1724521234336,1.633308,64218.0,64217.0,0.04890225]
[1724521234743,1.633308,64218.0,64217.0,0.00223356]
[1724521234944,1.633308,64218.0,64217.0,0.04890225]
[1724521235138,1.633308,64218.0,64217.0,0.00223356]
[1724521235442,1.633308,64218.0,64217.0,0.04890225]
[1724521236142,1.633308,64218.0,64217.0,0.00223356]
[1724521236340,1.633308,64218.0,64217.0,0.04890225]
[1724521237540,2.033308,64218.0,64217.0,0.00223356]
[1724521239842,1.311708,64218.0,64217.0,0.00223356]
[1724521240246,2.033308,64218.0,64217.0,0.00223356]
[1724521245146,2.033308,64218.0,64217.0,0.04890225]
[1724521245645,2.033308,64218.0,64217.0,0.00223356]
[1724521246042,2.033308,64218.0,64217.0,0.04890225]
[1724521246649,1.633308,64218.0,64217.0,0.04890225]
[1724521247147,1.633308,64218.0,64217.0,0.00223356]
[1724521248244,1.633308,64218.0,64217.0,0.04890225]
[1724521248550,1.723308,64218.0,64217.0,0.04890225]
[1724521250543,1.723308,64218.0,64217.0,0.00223356]
[1724521250951,1.723308,64218.0,64217.0,0.04890138]
[1724521251454,1.723308,64218.0,64217.0,0.00223356]
[1724521251651,1.256148,64218.0,64217.0,0.00223356]
[1724521255149,1.256148,64218.0,64217.0,0.04890391]
[1724521255749,1.256148,64218.0,64217.0,0.04890393]
[1724521256753,1.256148,64218.0,64217.0,0.00223356]
[1724521259855,2.201132,64218.0,64217.0,0.00223356]
[1724521260260,1.801132,64218.0,64217.0,0.00223356]
[1724521260453,2.2787486,64218.0,64217.0,0.04891285]
[1724521260754,2.201132,64218.0,64217.0,0.00223356]
[1724521262953,1.333972,64218.0,64217.0,0.00223356]
[1724521263555,1.333972,64218.0,64217.0,0.04893341]
[1724521264956,0.612372,64218.0,64217.0,0.04893341]
[1724521265162,1.333972,64218.0,64217.0,0.04893341]
[1724521265659,1.333972,64218.0,64217.0,0.00223356]
[1724521265859,1.333972,64218.0,64217.0,0.04893341]
[1724521266459,1.41159674,64218.0,64217.0,0.04893341]
[1724521266664,1.41159676,64218.0,64217.0,0.04893341]
[1724521268162,1.41159676,64218.0,64217.0,0.00223356]
[1724521268163,1.333972,64218.0,64217.0,0.00223356]
[1724521274562,1.733972,64218.0,64217.0,0.00223356]
[1724521274764,1.733972,64218.0,64210.0,0.06222162]
[1724521274765,0.155666,64211.0,64210.0,0.06222162]
[1724521274973,0.077835,64209.0,64208.0,0.06222162]
[1724521275161,0.077839,64206.0,64205.0,0.06222162]
[1724521275362,0.077839,64206.0,64204.0,0.06223269]
[1724521275363,0.09,64206.0,64204.0,0.06223269]
[1724521275668,0.09,64205.0,64204.0,0.06223269]
[1724521276175,0.09004,64205.0,64204.0,0.06223269]
[1724521276366,0.077845,64202.0,64200.0,0.0474]
[1724521276568,0.528645,64201.0,64200.0,0.0474]
[1724521277072,0.528685,64201.0,64200.0,0.0474]
[1724521277863,0.528685,64201.0,64200.0,0.0494]
[1724521278572,0.528685,64201.0,64200.0,0.12517639]
[1724521278771,0.528685,64201.0,64200.0,0.0484]
[1724521278962,0.528685,64201.0,64200.0,0.0524]
[1724521279363,0.528685,64201.0,64200.0,0.0484]
[1724521279564,0.528685,64201.0,64200.0,0.0514]
[1724521280971,0.528685,64201.0,64200.0,0.06619793]
[1724521281272,0.528685,64201.0,64200.0,0.004]
[1724521281273,0.60653,64201.0,64200.0,0.004]
[1724521284571,0.88743,64201.0,64200.0,0.004]
[1724521285672,0.52663,64201.0,64200.0,0.004]
[1724521285876,1.24823,64201.0,64200.0,0.004]
[1724521293086,0.155692,64200.0,64199.0,0.00023356]
[1724521294082,0.155732,64200.0,64199.0,0.00023356]
[1724521294679,0.157732,64200.0,64199.0,0.00123356]
[1724521295785,0.166732,64200.0,64199.0,0.00223356]
[1724521296383,0.447632,64200.0,64199.0,0.00223356]
[1724521297382,0.077862,64187.0,64186.0,0.06219793]
[1724521297581,0.077862,64187.0,64184.0,0.0951]
[1724521297582,1.170362,64187.0,64185.0,0.06219793]
[1724521298080,1.0025,64187.0,64184.0,0.0951]
[1724521298388,1.0925,64187.0,64184.0,0.0951]
[1724521298891,4e-05,64185.0,64184.0,0.0951]
[1724521299682,0.077904,64185.0,64184.0,0.0951]
[1724521300189,0.00304,64185.0,64184.0,0.0486]
[1724521300491,0.09304,64185.0,64184.0,0.0486]
[1724521300880,0.09704,64185.0,64184.0,0.0486]
[1724521302489,0.37794,64185.0,64184.0,0.0486]
[1724521303598,0.455804,64185.0,64184.0,0.0486]
[1724521304287,0.455804,64185.0,64184.0,0.12637639]
[1724521306393,0.41685721,64185.0,64184.0,0.16723193]
[1724521308590,0.41685721,64185.0,64184.0,0.16723187]
[1724521313284,0.41685721,64185.0,64184.0,0.1672331]
[1724521313990,0.41685721,64185.0,64184.0,0.1186331]
[1724521314201,0.077866,64184.0,64182.0,0.06221081]
[1724521314395,0.077866,64184.0,64177.0,0.07776634]
[1724521314396,0.077878,64174.0,64171.0,0.07776634]
[1724521314586,0.077878,64174.0,64169.0,0.06220669]
[1724521314587,0.8116,64172.0,64169.0,0.06220669]
[1724521314790,0.7216,64172.0,64170.0,0.06220669]
[1724521314991,0.09,64171.0,64170.0,0.06220669]
[1724521315184,0.09,64171.0,64168.0,0.06234188]
[1724521315590,0.09,64171.0,64168.0,0.00013519]
[1724521316091,4e-05,64169.0,64168.0,0.06234188]
[1724521316396,4e-05,64169.0,64168.0,0.57690153]
[1724521316596,4e-05,64169.0,64168.0,0.96642153]
[1724521316796,4e-05,64169.0,64168.0,1.01192153]
[1724521317594,4e-05,64169.0,64168.0,0.93415519]
[1724521318305,4e-05,64169.0,64168.0,0.92515519]
[1724521318497,0.00204,64169.0,64168.0,0.93515519]
[1724521318700,0.00204,64169.0,64168.0,1.01304019]
[1724521319607,0.00023374,64177.0,64169.0,0.46752]
[1724521319794,0.00023374,64177.0,64176.0,0.07765777]
[1724521320194,0.00023374,64177.0,64176.0,0.86748]
[1724521320399,0.00023374,64177.0,64176.0,0.94517777]
[1724521320594,0.00023374,64177.0,64176.0,1.02305277]
[1724521321600,0.00023374,64177.0,64176.0,0.948395]
[1724521322300,0.00123374,64177.0,64176.0,0.948395]
[1724521323103,0.00023374,64177.0,64176.0,0.949395]
[1724521324192,0.00023374,64177.0,64176.0,1.04258432]
[1724521325493,0.00023374,64177.0,64176.0,0.949395]
[1724521326200,0.00023374,64177.0,64176.0,1.04258432]
[1724521327796,0.00023374,64177.0,64176.0,0.00404]
[1724521327797,0.65890774,64177.0,64176.0,0.00404]
[1724521328001,0.36103374,64177.0,64176.0,0.00404]
[1724521328908,0.36103374,64177.0,64176.0,0.15959396]
[1724521330408,0.36103374,64177.0,64176.0,0.27823869]
[1724521330599,0.36103374,64177.0,64176.0,0.27823718]
[1724521331114,0.36103374,64177.0,64176.0,0.74571718]
[1724521331313,0.36103374,64177.0,64176.0,1.14571718]
[1724521331612,0.36103374,64177.0,64176.0,1.06803822]
[1724521332514,0.00023374,64177.0,64176.0,1.06803822]
[1724521333116,0.3608,64182.0,64181.0,0.077869]
[1724521333918,0.3608,64182.0,64181.0,0.077909]
[1724521334812,0.3668,64182.0,64181.0,0.077909]
[1724521335711,0.3648,64182.0,64181.0,0.077909]
[1724521335910,0.3628,64182.0,64181.0,0.077909]
[1724521336216,0.440668,64182.0,64181.0,4e-05]
[1724521338317,0.440668,64182.0,64181.0,0.06219738]
[1724521338617,0.440668,64182.0,64181.0,4e-05]
[1724521338815,0.440668,64182.0,64181.0,0.06220437]
[1724521339311,0.440668,64182.0,64181.0,4e-05]
[1724521342110,0.440668,64182.0,64181.0,0.07772625]
[1724521342615,0.440668,64182.0,64181.0,4e-05]
[1724521344512,0.440668,64182.0,64181.0,0.06223017]
[1724521344922,0.440668,64182.0,64181.0,4e-05]
[1724521345417,0.518536,64182.0,64181.0,4e-05]
[1724521346616,0.46744,64181.0,64174.0,0.06223949]
[1724521346921,0.3608,64175.0,64169.0,0.06223949]
[1724521347118,0.3608,64175.0,64168.0,0.00013519]
[1724521347119,0.077884,64169.0,64168.0,0.00013519]
[1724521347916,0.077924,64169.0,64168.0,0.00013519]
[1724521348719,0.078924,64169.0,64168.0,0.01413519]
[1724521349116,0.079924,64169.0,64168.0,0.02613519]
[1724521351315,0.04096567,64169.0,64168.0,0.02613519]
[1724521352110,0.04096567,64169.0,64168.0,0.08829002]
[1724521352315,0.40176567,64169.0,64168.0,0.08829002]
[1724521352815,0.40176567,64169.0,64168.0,0.02613519]
[1724521353228,0.40176567,64169.0,64168.0,0.08828397]
[1724521355919,0.40176567,64169.0,64168.0,0.02613519]
[1724521357314,0.40176567,64169.0,64168.0,0.08827695]
[1724521360019,0.04096567,64169.0,64168.0,0.08827695]
[1724521360527,0.40176567,64169.0,64168.0,0.08827695]
[1724521361723,0.04096567,64169.0,64168.0,0.08827695]
[1724521362028,0.40176567,64169.0,64168.0,0.08827695]
[1724521364120,0.40176567,64169.0,64168.0,0.02613519]
[1724521364433,0.49176567,64169.0,64168.0,0.02613519]
[1724521370037,0.49176567,64169.0,64168.0,0.08827695]
[1724521370634,0.13096567,64169.0,64168.0,0.08827695]
[1724521370935,0.49176567,64169.0,64168.0,0.08827695]
[1724521372231,0.49176567,64169.0,64168.0,0.02613519]
[1724521373538,0.13096567,64169.0,64168.0,0.02613519]
[1724521373740,0.49176567,64169.0,64168.0,0.02613519]
[1724521374237,0.49176567,64169.0,64168.0,0.10382144]
[1724521374630,0.13096567,64169.0,64168.0,0.10382144]
[1724521374829,0.49176567,64169.0,64168.0,0.10382144]
[1724521375130,0.49176567,64169.0,64168.0,0.22249413]
[1724521375329,0.49176567,64169.0,64168.0,0.14480788]
[1724521378140,0.49176567,64169.0,64168.0,0.14480129]
[1724521380036,0.49176567,64169.0,64168.0,0.14480066]
[1724521380543,0.13096567,64169.0,64168.0,0.14480066]
[1724521380744,0.49176567,64169.0,64168.0,0.14480066]
[1724521380933,0.13096567,64169.0,64168.0,0.14480066]
[1724521381136,0.49176567,64169.0,64168.0,0.14480066]
[1724521382731,0.13096567,64169.0,64168.0,0.14480066]
[1724521382931,0.49176567,64169.0,64168.0,0.14480066]
[1724521384540,0.36284,64169.0,64168.0,0.22268566]
[1724521385835,0.36284,64169.0,64168.0,0.31612169]
[1724521386135,0.36284,64169.0,64168.0,0.22268566]
[1724521386337,0.45284,64169.0,64168.0,0.3161229]
[1724521387343,0.45284,64169.0,64168.0,0.22268566]
[1724521387548,0.45284,64169.0,64168.0,0.3161229]
[1724521388035,0.530724,64169.0,64168.0,0.14480066]
[1724521388543,0.530724,64169.0,64168.0,0.22266947]
[1724521389648,0.530724,64169.0,64168.0,0.02613519]
[1724521390138,0.608608,64169.0,64168.0,0.02613519]
[1724521390648,0.67058512,64169.0,64168.0,0.08842171]
[1724521391047,0.608608,64169.0,64168.0,0.08842171]
[1724521391549,0.607608,64169.0,64168.0,0.01413519]
[1724521391846,0.607608,64169.0,64168.0,0.00113519]
[1724521392940,0.66958512,64169.0,64168.0,0.00113519]
[1724521393145,1.475128,64169.0,64168.0,0.00113519]
[1724521393741,0.077889,64165.0,64164.0,0.06252026]
[1724521394046,0.528689,64165.0,64164.0,0.06252026]
[1724521394245,0.528689,64165.0,64164.0,0.00023374]
[1724521394453,0.528689,64165.0,64164.0,0.06252026]
[1724521394747,0.528729,64165.0,64164.0,0.06252026]
[1724521394944,0.528729,64165.0,64164.0,0.07152026]
[1724521394945,0.996289,64165.0,64164.0,0.07152026]
[1724521395150,0.077901,64155.0,64153.0,0.07786881]
[1724521395449,0.077903,64153.0,64150.0,0.07786881]
[1724521395642,0.09,64151.0,64148.0,0.07786881]
[1724521395844,0.09,64149.0,64148.0,0.07786881]
[1724521396042,0.09,64149.0,64148.0,0.19657431]
[1724521396246,0.05102968,64149.0,64148.0,0.19657431]
[1724521396549,0.05106968,64149.0,64147.0,0.07786881]
[1724521396853,0.4508,64148.0,64147.0,0.07786881]
[1724521397054,0.4508,64148.0,64147.0,0.19657214]
[1724521397243,0.45084,64148.0,64147.0,0.19657214]
[1724521397443,0.45084,64148.0,64147.0,0.07786881]
[1724521398046,0.45084,64148.0,64143.0,0.10386841]
[1724521398047,0.45084,64148.0,64146.0,0.07786881]
[1724521398750,0.45084,64148.0,64147.0,0.02396]
[1724521398751,0.45284,64148.0,64147.0,0.02396]
[1724521398953,0.4528,64148.0,64147.0,0.02396]
[1724521399353,0.4518,64148.0,64146.0,0.08986881]
[1724521399653,0.4528,64148.0,64146.0,0.024]
[1724521400455,0.53071,64148.0,64146.0,0.024]
[1724521400848,0.52971,64148.0,64146.0,0.012]
[1724521401057,0.077911,64147.0,64144.0,0.07786881]
[1724521401357,0.09,64145.0,64144.0,0.07786881]
[1724521401547,0.09,64145.0,64144.0,0.19657327]
[1724521402152,0.09,64145.0,64144.0,0.08386881]
[1724521402858,0.09204,64145.0,64144.0,0.09786881]
[1724521403058,0.09204,64145.0,64144.0,0.02]
[1724521403554,0.09204,64145.0,64144.0,0.21657301]
[1724521404058,1.32052,64145.0,64139.0,0.07786881]
[1724521404256,0.3608,64140.0,64134.0,0.06211841]
[1724521404553,0.077926,64134.0,64133.0,0.00017398]
[1724521404757,0.16806119,64134.0,64133.0,0.00017398]
[1724521405461,0.16810119,64134.0,64133.0,0.00017398]
[1724521406166,0.16910119,64134.0,64133.0,0.01017398]
[1724521406456,0.07910119,64134.0,64133.0,0.01017398]
[1724521407650,0.08010119,64134.0,64133.0,0.01117398]
[1724521410959,0.07810119,64134.0,64133.0,0.00017398]
[1724521411163,0.07910119,64134.0,64133.0,0.00017398]
[1724521412566,0.00117519,64134.0,64133.0,0.00017398]
[1724521412863,0.077906,64151.0,64141.0,0.077917]
[1724521413063,0.3608,64147.0,64142.0,0.04645006]
[1724521413255,0.3608,64147.0,64141.0,0.077917]
[1724521414265,0.3648,64147.0,64141.0,0.077917]
[1724521414460,0.3648,64147.0,64141.0,0.12436706]
[1724521414663,0.3648,64147.0,64143.0,0.04645006]
[1724521414864,0.3688,64147.0,64143.0,0.04645006]
[1724521415258,0.3688,64147.0,64142.0,0.04645006]
[1724521415462,0.3688,64147.0,64143.0,0.04645006]
[1724521415463,0.3658,64147.0,64143.0,0.04645006]
[1724521415660,0.3658,64147.0,64144.0,0.04645006]
[1724521415855,0.005,64147.0,64144.0,0.04645006]
[1724521416368,0.077908,64149.0,64141.0,0.10694225]
[1724521416369,0.077908,64149.0,64143.0,0.04645006]
[1724521416570,0.077908,64149.0,64144.0,0.04645006]
[1724521417062,0.077908,64149.0,64148.0,4e-05]
[1724521418469,0.081908,64149.0,64148.0,4e-05]
[1724521419061,0.087908,64149.0,64148.0,4e-05]
[1724521419457,0.087908,64149.0,64148.0,0.04649006]
[1724521420960,0.087908,64149.0,64148.0,4e-05]
[1724521421558,0.087908,64149.0,64148.0,0.04649006]
[1724521422555,0.087908,64149.0,64148.0,4e-05]
[1724521422759,0.448708,64149.0,64148.0,4e-05]
[1724521426467,0.448708,64149.0,64148.0,0.02674201]
[1724521433674,0.3708,64149.0,64148.0,0.10465101]
[1724521433874,0.3708,64149.0,64148.0,0.15275101]
[1724521435986,0.01,64149.0,64148.0,0.15275101]
[1724521438480,0.01,64149.0,64148.0,0.23061982]
[1724521439175,0.01,64149.0,64148.0,0.15275101]
[1724521439383,0.01,64149.0,64148.0,0.34931329]
[1724521439583,0.01,64149.0,64148.0,0.34917918]
[1724521439880,0.01,64149.0,64148.0,0.23048571]
[1724521440480,0.01,64149.0,64148.0,0.27144711]
[1724521440783,0.01,64149.0,64148.0,0.10465101]
[1724521441488,0.01,64149.0,64148.0,0.30111271]
[1724521442581,0.01,64149.0,64148.0,0.22334713]
[1724521443791,0.00023374,64150.0,64148.0,0.22334713]
[1724521443994,0.00023374,64150.0,64149.0,0.20869612]
[1724521444496,0.00023374,64150.0,64149.0,0.20873612]
[1724521444988,0.00023374,64150.0,64149.0,0.20873615]
[1724521445193,0.01023374,64150.0,64149.0,0.20873615]
[1724521445891,0.01223374,64150.0,64149.0,0.20873615]
[1724521446497,0.01223374,64150.0,64149.0,0.20873612]
[1724521447789,0.18014074,64150.0,64149.0,0.11873612]
[1724521448094,0.22714074,64150.0,64149.0,0.11873612]
[1724521448282,0.27337468,64150.0,64149.0,4e-05]
[1724521448483,0.22714074,64150.0,64149.0,4e-05]
[1724521449895,0.27364788,64150.0,64149.0,4e-05]
[1724521450091,0.22714074,64150.0,64149.0,4e-05]
[1724521450496,0.27364548,64150.0,64149.0,4e-05]
[1724521450992,0.22714074,64150.0,64149.0,4e-05]
[1724521451398,0.27364515,64150.0,64149.0,4e-05]
[1724521452099,0.99524515,64150.0,64149.0,4e-05]
[1724521454087,1.02664774,64150.0,64149.0,4e-05]
[1724521454292,1.02664774,64150.0,64149.0,0.06229533]
[1724521454293,1.81638074,64150.0,64149.0,0.06229533]
[1724521454591,1.81638074,64150.0,64147.0,0.06229533]
[1724521454592,0.077908,64149.0,64147.0,0.06229533]
[1724521454795,0.15582,64147.0,64146.0,0.06229533]
[1724521455001,0.24582,64147.0,64146.0,0.06229533]
[1724521455188,0.24582,64147.0,64142.0,0.07787933]
[1724521455189,0.155824,64146.0,64145.0,0.06229533]
[1724521455388,0.245824,64146.0,64145.0,0.06229533]
[1724521455794,0.967424,64146.0,64145.0,0.06229533]
[1724521455992,0.967464,64146.0,64145.0,0.06229533]
[1724521456193,0.077913,64145.0,64144.0,0.06229533]
[1724521456394,0.167913,64145.0,64144.0,0.06229533]
[1724521456599,0.077914,64144.0,64143.0,0.06229533]
[1724521456792,0.167914,64144.0,64143.0,0.06229533]
[1724521457500,0.167954,64144.0,64143.0,0.06229533]
[1724521458193,0.167954,64144.0,64143.0,0.002]
[1724521458393,0.168954,64144.0,64143.0,0.002]
[1724521461494,0.246868,64144.0,64143.0,0.002]
[1724521462798,0.246868,64144.0,64143.0,0.04866629]
[1724521463705,0.246868,64144.0,64143.0,0.002]
[1724521464196,0.246868,64144.0,64143.0,0.04866629]
[1724521465703,0.968468,64144.0,64143.0,0.04866629]
[1724521467499,0.968468,64144.0,64143.0,0.002]
[1724521468504,0.246868,64144.0,64143.0,0.002]
[1724521468702,0.968468,64144.0,64143.0,0.002]
[1724521470504,0.246868,64144.0,64143.0,0.002]
[1724521470807,0.968468,64144.0,64143.0,0.002]
[1724521471009,0.246868,64144.0,64143.0,0.002]
[1724521471210,0.968468,64144.0,64143.0,0.002]
[1724521473001,1.0148878,64144.0,64143.0,0.002]
[1724521473404,0.968468,64144.0,64143.0,0.002]
[1724521473905,1.0148878,64144.0,64143.0,0.002]
[1724521474305,0.968468,64144.0,64143.0,0.002]
[1724521474508,1.01489964,64144.0,64143.0,0.002]
[1724521474807,0.968468,64144.0,64143.0,0.002]
[1724521475008,1.01489543,64144.0,64143.0,0.002]
[1724521475202,0.968468,64144.0,64143.0,0.002]
[1724521478609,0.878468,64144.0,64143.0,0.002]
[1724521478798,0.968468,64144.0,64143.0,0.002]
[1724521479211,0.968468,64144.0,64143.0,0.06429533]
[1724521482209,0.968468,64144.0,64143.0,0.002]
[1724521483705,1.03046441,64144.0,64143.0,0.06431519]
[1724521484306,0.968468,64144.0,64143.0,0.002]
[1724521484532,1.03043964,64144.0,64143.0,0.002]
[1724521487211,0.968468,64144.0,64143.0,0.002]
[1724521488616,1.03043964,64144.0,64143.0,0.002]
[1724521488818,0.968468,64144.0,64143.0,0.002]
[1724521489316,1.03045734,64144.0,64143.0,0.002]
[1724521490310,0.968468,64144.0,64143.0,0.002]
[1724521494016,0.246868,64144.0,64143.0,0.002]
[1724521494210,0.968468,64144.0,64143.0,0.002]
[1724521498315,0.878468,64144.0,64143.0,0.002]
[1724521498517,0.968468,64144.0,64143.0,0.002]
[1724521501219,0.15583,64143.0,64142.0,0.06234283]
[1724521501415,0.167915,64143.0,64138.0,0.07811307]
[1724521501624,0.24584,64139.0,64138.0,0.07811307]
[1724521501813,0.24584,64139.0,64138.0,0.00023374]
[1724521502219,0.24588,64139.0,64138.0,0.00023374]
[1724521502414,0.15588,64139.0,64138.0,0.00023374]
[1724521502816,0.24688,64139.0,64138.0,0.00723374]
[1724521504317,0.16896,64139.0,64138.0,0.01223374]
[1724521505926,0.89056,64139.0,64138.0,0.00823374]
[1724521506521,0.88956,64139.0,64138.0,0.00323374]
[1724521508031,0.88956,64139.0,64138.0,0.00023374]
[1724521508230,0.89156,64139.0,64138.0,0.00023374]
[1724521509932,0.93796,64139.0,64138.0,0.00023374]
[1724521510117,1.01588,64139.0,64138.0,0.00023374]
[1724521510322,1.11288,64139.0,64138.0,0.00023374]
[1724521510527,1.03496,64139.0,64138.0,0.00023374]
[1724521512033,1.03496,64139.0,64138.0,0.04696494]
[1724521512233,1.03496,64139.0,64138.0,0.00023374]
[1724521514233,1.11288,64139.0,64138.0,0.00023374]
[1724521515629,1.02288,64139.0,64138.0,0.00023374]
[1724521515831,1.11288,64139.0,64138.0,0.00023374]
[1724521516027,1.03496,64139.0,64138.0,0.00023374]
[1724521516230,0.94496,64139.0,64138.0,0.00023374]
[1724521516425,1.11288,64139.0,64138.0,0.00023374]
[1724521516829,1.03496,64139.0,64138.0,0.00023374]
[1724521517129,1.11288,64139.0,64138.0,0.00023374]
[1724521518326,1.03496,64139.0,64138.0,0.00023374]
[1724521522930,1.11288,64139.0,64138.0,0.00023374]
[1724521523135,1.03496,64139.0,64138.0,0.00023374]
[1724521526739,1.11288,64139.0,64138.0,0.00023374]
[1724521526944,0.39128,64139.0,64138.0,0.00023374]
[1724521527141,1.11288,64139.0,64138.0,0.00023374]
[1724521528146,0.077924,64136.0,64135.0,0.0467312]
[1724521528442,0.30779357,64136.0,64135.0,0.0467312]
[1724521528946,0.30783357,64136.0,64135.0,0.0467312]
[1724521529342,0.30783357,64136.0,64133.0,0.00017398]
[1724521529343,0.077926,64134.0,64133.0,0.00017398]
[1724521530047,0.077966,64134.0,64133.0,0.00017398]
[1724521530641,0.078966,64134.0,64133.0,0.00517398]
[1724521531638,0.078966,64134.0,64133.0,0.00917398]
[1724521532535,0.168966,64134.0,64133.0,0.00917398]
[1724521533852,0.246892,64134.0,64133.0,0.00917398]
[1724521534650,0.968492,64134.0,64133.0,0.00917398]
[1724521534847,1.03044606,64134.0,64133.0,0.0558991]
[1724521535242,0.968492,64134.0,64133.0,0.00917398]
[1724521535648,0.878492,64134.0,64133.0,0.00917398]
[1724521535952,0.968492,64134.0,64133.0,0.00917398]
[1724521538345,0.878492,64134.0,64133.0,0.00917398]
[1724521538653,0.968492,64134.0,64133.0,0.00917398]
[1724521544567,0.246892,64134.0,64133.0,0.00917398]
[1724521544858,0.968492,64134.0,64133.0,0.00917398]
[1724521545059,0.246892,64134.0,64133.0,0.00917398]
[1724521545254,0.890566,64134.0,64133.0,0.00917398]
[1724521551457,0.95258239,64134.0,64133.0,0.00917398]
[1724521552656,0.890566,64134.0,64133.0,0.00917398]
[1724521552855,0.95258239,64134.0,64133.0,0.00917398]
[1724521553457,0.23098239,64134.0,64133.0,0.00917398]
[1724521553659,0.59178239,64134.0,64133.0,0.00917398]
[1724521554258,0.23098239,64134.0,64133.0,0.00917398]
[1724521554465,0.529766,64134.0,64133.0,0.00917398]
[1724521555054,0.59178239,64134.0,64133.0,0.00917398]
[1724521555564,0.529766,64134.0,64133.0,0.00917398]
[1724521556061,0.59178239,64134.0,64133.0,0.00917398]
[1724521556662,0.529766,64134.0,64133.0,0.00917398]
[1724521557966,0.59178239,64134.0,64133.0,0.00917398]
[1724521558166,0.529766,64134.0,64133.0,0.00917398]
[1724521561367,0.59178239,64134.0,64133.0,0.00917398]
[1724521561559,0.50178239,64134.0,64133.0,0.00917398]
[1724521561764,0.529766,64134.0,64133.0,0.00917398]
[1724521562268,0.36184,64134.0,64133.0,0.09917398]
[1724521562466,0.12440168,64139.0,64133.0,0.68566805]
[1724521562670,0.40728068,64140.0,64138.0,0.09]
[1724521562975,0.3608,64140.0,64139.0,0.11873407]
[1724521563271,0.3608,64140.0,64139.0,0.58645407]
[1724521563459,0.3608,64140.0,64139.0,0.66441407]
[1724521564264,0.077912,64146.0,64143.0,0.077915]
[1724521564466,0.13671442,64150.0,64145.0,0.167913]
[1724521564679,0.13671442,64150.0,64147.0,0.06223177]
[1724521565173,0.16814074,64150.0,64149.0,0.09004]
[1724521565568,0.07814074,64150.0,64149.0,0.09004]
[1724521566475,0.07814074,64150.0,64149.0,4e-05]
[1724521566476,0.16814074,64150.0,64149.0,4e-05]
[1724521566773,0.00023374,64150.0,64149.0,0.15227177]
[1724521566970,0.02023374,64150.0,64149.0,0.15327177]
[1724521567272,0.02023374,64150.0,64149.0,0.09104]
[1724521567461,0.01323374,64150.0,64149.0,0.15319932]
[1724521567672,0.02523374,64150.0,64149.0,0.45284]
[1724521567971,0.02523374,64150.0,64149.0,0.51499808]
[1724521568170,0.02523374,64150.0,64149.0,0.45284]
[1724521568364,0.02523374,64150.0,64149.0,0.51499808]
[1724521569163,0.02523374,64150.0,64149.0,0.45284]
[1724521569475,0.02523374,64150.0,64149.0,0.530748]
[1724521571775,0.02523374,64150.0,64149.0,0.57729751]
[1724521571976,0.02523374,64150.0,64149.0,0.530748]
[1724521572175,0.02523374,64150.0,64149.0,0.169948]
[1724521572776,0.02523374,64150.0,64149.0,0.21649751]
[1724521573678,0.02523374,64150.0,64149.0,0.57729751]
[1724521573979,0.02523374,64150.0,64149.0,1.44493751]
[1724521575574,0.02523374,64150.0,64149.0,1.04493751]
[1724521575971,0.02523374,64150.0,64149.0,1.44493751]
[1724521576174,0.02523374,64150.0,64149.0,1.04493751]
[1724521576574,0.02523374,64150.0,64149.0,0.530748]
[1724521577977,0.123698,64158.0,64149.0,1.32048]
[1724521577978,0.077901,64155.0,64149.0,1.32048]
[1724521578176,0.0458,64158.0,64154.0,0.09]
[1724521578476,0.0458,64158.0,64157.0,0.09]
[1724521579084,0.0458,64158.0,64157.0,0.09004]
[1724521579888,0.123698,64158.0,64157.0,0.09004]
[1724521580074,0.137698,64158.0,64157.0,0.09104]
[1724521580270,0.137698,64158.0,64157.0,0.529738]
[1724521580475,0.014,64158.0,64157.0,0.997338]
[1724521580782,0.014,64158.0,64157.0,1.04385533]
[1724521581182,0.014,64158.0,64157.0,0.997338]
[1724521581682,0.014,64158.0,64157.0,1.04485533]
[1724521581986,0.077894,64161.0,64157.0,1.04385533]
[1724521582284,0.077894,64161.0,64160.0,0.09]
[1724521582677,0.077894,64161.0,64160.0,0.09004]
[1724521584384,0.083894,64161.0,64160.0,0.09104]